Cogmind - Beta 13 @@@ ROGUE MODE // 2024.03.17 @ 21:14:36 Player: NitroKuite Result: Destroyed by G-47 Trooper with Particle Gun Performance ------------- Evolutions (2) 1000 Regions Visited (4) 800 Robots Destroyed (21) 105 Value Destroyed (718) 718 Prototype IDs (2) 40 Alien Tech Used (0) 0 Bonus (150) 150 TOTAL SCORE: 2813 Bonus ------- Follower Combat Kills 150 Cogmind --------- Core Integrity 0/550 Matter 295/300 Energy 100/100 System Corruption 0% Temperature Cool (9) Movement Core (1350) Ox26 Location -8/Materials Parts ------- > --- POWER (1) -------- (None) > --- PROPULSION (2) --- (None) > --- UTILITY (6) ------ Huge Storage Unit Terrain Scan Processor > --- WEAPON (2) ------- (None) > --- INVENTORY (25) --- Medium Storage Unit Huge Storage Unit Terrain Scanner Hardened Medium Armor Plating Medium Laser Heavy Ion Cannon Peak State ------------ > --- POWER ------------ Improved Ion Engine > --- PROPULSION ------- Flight Unit Flight Unit > --- UTILITY ---------- Huge Storage Unit Machine Analyzer Visual Processing Unit Signal Interpreter Terrain Scan Processor Improved Shield Generator > --- WEAPON ----------- Plasma Cannon Plasma Cannon > --- INVENTORY -------- Flight Unit Flight Unit Medium Storage Unit Huge Storage Unit Terrain Scanner Particle Charger Hardened Medium Armor Plating Medium Laser Plasma Cannon Plasma Cannon Heavy Ion Cannon [Rating: 27] Favorites ----------- Power Improved Ion Engine Engine Improved Ion Engine Propulsion Compact Wheel Wheel Compact Wheel Flight Unit Flight Unit Utility Huge Storage Unit Device Terrain Scanner Storage Huge Storage Unit Processor Signal Interpreter Protection Hardened Medium Armor Plating Weapon Plasma Cannon Energy Gun Medium Laser Energy Cannon Plasma Cannon Launcher Grenade Launcher Build | -11 -10 -9 -9 -8 ------- Run | Yrd Mat Mat Min Mat Slots Evolved 4 | . . 2 . 2 Power . | . . . . . Propulsion . | . . . . . Utility 4 | . . 2 . 2 Weapon . | . . . . . Parts Attached 38 | 7 9 4 6 12 Power 4 | 2 . 1 1 . Engine 4 | 2 . 1 1 . Core . | . . . . . Reactor . | . . . . . Propulsion 11 | 2 4 . 2 3 Treads . | . . . . . Leg . | . . . . . Wheel 7 | 2 2 . 2 1 Hover . | . . . . . Flight 4 | . 2 . . 2 Utility 14 | 1 3 3 2 5 Device 6 | . 1 2 2 1 Storage 3 | 1 2 . . . Processor 4 | . . 1 . 3 Hackware . | . . . . . Protection 1 | . . . . 1 Artifact . | . . . . . Weapon 9 | 2 2 . 1 4 Energy Gun 3 | 2 1 . . . Energy Cannon 5 | . . . 1 4 Ballistic Gun . | . . . . . Ballistic Cannon . | . . . . . Launcher 1 | . 1 . . . Special Weapon . | . . . . . Impact Weapon . | . . . . . Slashing Weapon . | . . . . . Piercing Weapon . | . . . . . Special Melee Weapon . | . . . . . Unidentified Prototypes . | . . . . . Parts Lost 18 | . . 4 . 14 Power 2 | . . 1 . 1 Propulsion 4 | . . . . 4 Utility 7 | . . 2 . 5 Weapon 5 | . . 1 . 4 Highest Loss Streak 5 | . . 4 . 5 To Critical Strikes . | . . . . . Average Slot Usage (%) 83 | . 93 93 86 76 Engine 8 | . 14 10 11 3 Wheel 13 | . 26 22 22 3 Flight 4 | . 1 . . 8 Device 12 | . 9 19 20 9 Storage 10 | . 14 11 11 9 Processor 17 | . . 11 11 28 Energy Gun 6 | . 23 11 2 . Energy Cannon 8 | . . . 8 13 Launcher 1 | . 3 7 . . Naked Turns . | . . . . . Heaviest Build 108 | 14 91 92 100 108 Greatest Support 32 | 32 32 32 32 32 Greatest Overweight (x) 32 | . 10 2 3 32 Average Overweight (x) 3 | . 1 2 2 9 Largest Inventory Capacity 25 | 8 25 25 25 25 Average Capacity 23 | 6 18 25 25 25 Most Carried 14 | 2 14 12 10 14 Average Carried 9 | 1 9 10 8 10 Final Capacity 25 | 8 25 25 25 25 Final Carried 13 | 2 13 9 10 6 Class Distribution -------------------- 87% | Mutant 12% | Scavenger-Mutant Dominant Class ---------------- Mutant | -10/Materials Mutant | -9/Materials Mutant | -9/Mines Mutant | -8/Materials Resources | -11 -10 -9 -9 -8 ----------- Run | Yrd Mat Mat Min Mat Matter Collected 588 | 267 82 27 144 68 Remotely . | . . . . . Salvage Created 598 | . 133 220 96 149 Parts 35 | . 13 9 4 9 Haulers Intercepted . | . . . . . Recyclers Shooed . | . . . . . Parts Field Recycled . | . . . . . Retrieved Matter . | . . . . . Parts Self-Destructed . | . . . . . Prevented . | . . . . . Kills | -11 -10 -9 -9 -8 ------- Run | Yrd Mat Mat Min Mat Combat Hostiles Destroyed 20 | . 5 10 2 3 Guns 8 | . 5 3 . . Cannons 4 | . . . 2 2 AOE 7 | . . 7 . . Classes Destroyed 5 | . 3 1 1 . Watcher 1 | . 1 . . . Swarmer 3 | . 3 . . . Grunt 13 | . 2 9 1 1 Brawler 1 | . . 1 . . Sentry 3 | . . . 1 2 Best Kill Streak 6 | . 3 6 2 1 Combat Bots Only 6 | . 3 6 2 1 Max Kills in Single Turn 2 | . 2 2 1 1 Gunslinging 1 | . 1 . . . Exploded 2 | . . 2 . . Melee . | . . . . . Uniques/NPCs Destroyed . | . . . . . Combat | -11 -10 -9 -9 -8 -------- Run | Yrd Mat Mat Min Mat Hostile Shots Fired 208 | . 27 35 11 135 Missed 56 | . 7 14 5 30 Damage Taken 2205 | . 207 285 87 1626 Core 747 | . 30 110 41 566 Absorbed by Shields 128 | . . . . 128 Regen/Repaired (Parts) 23 | . 23 . . . Core Remaining (%) 83 | 100 88 . 62 . Volleys Fired 64 | . 21 20 3 20 Largest 2 | . 2 2 1 2 Hottest 160 | . 100 80 65 160 Shots Fired 75 | . 25 21 3 26 Gun 38 | . 24 14 . . Cannon 29 | . . . 3 26 Launcher 8 | . 1 7 . . Special . | . . . . . Kinetic . | . . . . . Thermal 67 | . 24 14 3 26 Explosive 8 | . 1 7 . . Electromagnetic . | . . . . . Robot Hit Streak 13 | . 8 4 6 13 Robot Miss Streak 3 | . 1 3 . 2 Penetration Max . | . . . . . Secondary Targets 1 | . 1 . . . Max Gunslinging Chain 1 | . 1 . . . Shots Hit Robots 51 | . 21 11 3 16 Core Hits 36 | . 8 21 2 5 Critical Kills 1 | . . . . 1 Critical Parts Destroyed . | . . . . . Critical Strikes 7 | . 3 3 . 1 Burn 6 | . 3 3 . . Meltdown 1 | . . . . 1 Melee Attacks . | . . . . . Impact . | . . . . . Slashing . | . . . . . Piercing . | . . . . . Sneak Attacks . | . . . . . Combat Hostiles . | . . . . . Follow-up Attacks . | . . . . . Damage Inflicted 1539 | . 290 715 82 452 Guns 372 | . 245 127 . . Cannons 534 | . . . 82 452 Explosions 633 | . 45 588 . . Melee . | . . . . . Ramming . | . . . . . Kinetic . | . . . . . Thermal 906 | . 245 127 82 452 Explosive 633 | . 45 588 . . Electromagnetic . | . . . . . Impact . | . . . . . Slashing . | . . . . . Piercing . | . . . . . Highest Corruption . | . . . . . Average Corruption . | . . . . . Corruption Purged . | . . . . . Corruption Blocked . | . . . . . Overload Shots . | . . . . . Overflow Damage 39 | . . 28 . 11 Projectiles 11 | . . . . 11 Explosions 28 | . . 28 . . Melee . | . . . . . Knockbacks . | . . . . . Impact . | . . . . . Kinetic . | . . . . . Secondary . | . . . . . Self-Inflicted Damage 37 | . . 37 . . Shots 1 | . . 1 . . Rammed . | . . . . . Targets Rammed . | . . . . . Kicked . | . . . . . Crushed . | . . . . . Highest Temperature 198 | . 120 22 54 198 Average Temperature 53 | . 51 8 25 67 Received Heat Transfer 1144 | . 84 138 36 886 Siege Activations . | . . . . . Robots Corrupted . | . . . . . Combat Hostiles . | . . . . . Parts Fried . | . . . . . Impact Corruptions . | . . . . . Robots Melted 1 | . . . . 1 Combat Hostiles 1 | . . . . 1 Parts Melted 4 | . 3 . . 1 Heat Transferred 2463 | . 962 592 111 798 Parts Sabotaged . | . . . . . Parts Stolen . | . . . . . Parts Stripped . | . . . . . Power Chain Reactions . | . . . . . Alert | -11 -10 -9 -9 -8 ------- Run | Yrd Mat Mat Min Mat Peak Influence 343 | . 130 343 213 88 Initial 133 | . . 27 133 4 Average 83 | . 42 181 179 43 Maximum Alert Level 1 | . . 1 1 . Low Security (%) 81 | 100 100 38 37 100 Level 1 18 | . . 61 62 . Level 2 . | . . . . . Level 3 . | . . . . . Level 4 . | . . . . . Level 5 . | . . . . . High Security . | . . . . . Max Security . | . . . . . Squads Dispatched 9 | . 2 3 1 3 Investigation 7 | . 2 2 1 2 Extermination . | . . . . . Reinforcement 2 | . . 1 . 1 Assault . | . . . . . Garrison . | . . . . . Intercept . | . . . . . Searches Triggered . | . . . . . Construction Impeded . | . . . . . Haulers Reinforced . | . . . . . Active Scanning Responses . | . . . . . Cargo Convoy Interrupts . | . . . . . Stealth | -11 -10 -9 -9 -8 --------- Run | Yrd Mat Mat Min Mat Distress Signals 3 | . . 1 . 2 Communications Jammed . | . . . . . Distress Signals . | . . . . . Times Spotted 37 | . 7 16 4 10 Peak Tracking Total 8 | . 3 8 2 3 Tactical Retreats 8 | . 2 2 1 3 Traps | -11 -10 -9 -9 -8 ------- Run | Yrd Mat Mat Min Mat Traps Triggered 2 | . 1 . . 1 Indirectly . | . . . . . Trap Hack Attempts . | . . . . . Triggered . | . . . . . Disarmed . | . . . . . Reprogrammed . | . . . . . Reused . | . . . . . Traps Extracted . | . . . . . Installed . | . . . . . Triggered . | . . . . . Machines | -11 -10 -9 -9 -8 ---------- Run | Yrd Mat Mat Min Mat Machines Disabled 2 | . . 2 . . Max in Single Turn 1 | . . 1 . . Machines Repaired . | . . . . . Machines Dismantled . | . . . . . Machines Sabotaged . | . . . . . Overloaded Fab Kills . | . . . . . Hacking | -11 -10 -9 -9 -8 --------- Run | Yrd Mat Mat Min Mat Machines Accessed 8 | . 4 2 1 1 Terminals 4 | . 2 2 . . Fabricators . | . . . . . Repair Stations 1 | . 1 . . . Recycling Units 2 | . 1 . . 1 Scanalyzers . | . . . . . Garrison Access . | . . . . . Total Hacks 19 | . 10 6 1 2 Successful 9 | . 7 1 1 . Failed 10 | . 3 5 . 2 Catastrophic 1 | . . 1 . . Database Lockouts . | . . . . . Manual 5 | . . 5 . . Terminals 10 | . 4 6 . . Fabricators . | . . . . . Repair Stations 4 | . 4 . . . Recycling Units 4 | . 2 . . 2 Scanalyzers . | . . . . . Garrison Access . | . . . . . Terminal Hacks 4 | . 2 1 1 . Prototype ID Bank 1 | . 1 . . . Open Door 1 | . . . 1 . Alert Level 1 | . . 1 . . Zone Layout 1 | . 1 . . . Fabricator Hacks . | . . . . . Repair Station Hacks 3 | . 3 . . . Scan Component 2 | . 2 . . . Repair 1 | . 1 . . . Recycling Unit Hacks 2 | . 2 . . . Retrieve Matter 1 | . 1 . . . Retrieve Components 1 | . 1 . . . Scanalyzer . | . . . . . Garrison Access Hacks . | . . . . . Unauthorized Hacks . | . . . . . Terminals . | . . . . . Fabricators . | . . . . . Repair Stations . | . . . . . Recycling Units . | . . . . . Scanalyzers . | . . . . . Garrison Access . | . . . . . Data Cores Recovered . | . . . . . Used . | . . . . . Hacking Detections 5 | . 2 2 . 1 Full Trace Events 4 | . 1 2 . 1 Feedback Events . | . . . . . Feedback Blocked . | . . . . . Robot Schematics Acquired . | . . . . . Robots Built . | . . . . . Authchips . | . . . . . Time . | . . . . . Total Robot Build Rating . | . . . . . Part Schematics Acquired . | . . . . . Parts Built . | . . . . . Authchips . | . . . . . Time . | . . . . . Total Part Build Rating . | . . . . . Parts Repaired 1 | . 1 . . . Time 26 | . 26 . . . Parts Recycled . | . . . . . Recycled Matter . | . . . . . Retrieved Matter . | . . . . . Retrieved Components 2 | . 2 . . . Parts Scanalyzed . | . . . . . Part Schematics Acquired . | . . . . . Parts Damaged . | . . . . . Bothacking | -11 -10 -9 -9 -8 ------------ Run | Yrd Mat Mat Min Mat Used RIF Installer . | . . . . . Robots Hacked . | . . . . . Non-combat . | . . . . . Combat . | . . . . . Robot Hacks Applied . | . . . . . Relay Couplers Released . | . . . . . Fabnet Peak Effective % . | . . . . . Robots Rewired . | . . . . . Allies Hacked . | . . . . . Hacks Repelled . | . . . . . Allies | -11 -10 -9 -9 -8 -------- Run | Yrd Mat Mat Min Mat Total Allies 3 | . . . 3 . Largest Group 3 | . . . 3 3 Highest-Rated Group 40 | . . . 40 40 Highest-Rated Ally 16 | . . . 16 16 Total Orders . | . . . . . Ally Attacks 41 | . . . . 41 Total Damage 510 | . . . . 510 Kills 4 | . . . . 4 Allies Corrupted . | . . . . . Allies Melted . | . . . . . Intel | -11 -10 -9 -9 -8 ------- Run | Yrd Mat Mat Min Mat Robot Analysis Total . | . . . . . Derelict Logs Recovered 1 | . . . 1 . Drone Launches . | . . . . . Drone Recoveries . | . . . . . Exploration | -11 -10 -9 -9 -8 ------------- Run | Yrd Mat Mat Min Mat Turns Passed 2392 | 58 478 290 430 1136 Spaces Moved 1064 | 46 334 185 292 207 Core 37 | 5 . . . 32 Treads . | . . . . . Legs . | . . . . . Wheels 994 | 41 331 185 292 145 Hover . | . . . . . Flight 33 | . 3 . . 30 Fastest Speed 50 | 50 100 130 130 145 Average Speed 203 | 94 121 130 139 514 Slowest Speed 1650 | 100 837 130 145 1650 Overloaded Moves . | . . . . . Propulsion Burnouts . | . . . . . Robots Hopped . | . . . . . Cave-ins Triggered . | . . . . . Exploration Rate (%) 27 | 3 41 19 55 17 Regions Visited 4 Branch Regions 1 Pre-discovered Areas 1 | . . . 1 . Known Exits Taken 2 | . . 1 1 . Unknown Exits Taken 2 | 1 1 . . . Scrap Searched 3 | . . . 3 . Spaces Dug . | . . . . . Terrain Destroyed 52 | . 8 36 . 8 Melee . | . . . . . Projectile 8 | . . . . 8 AOE 44 | . 8 36 . . Terrain Rammed . | . . . . . Walls Destroyed . | . . . . . Machines Disabled . | . . . . . Actions | -11 -10 -9 -9 -8 --------- Run | Yrd Mat Mat Min Mat Total 1219 | 56 380 213 311 259 Wait 17 | 3 . 5 . 9 Move 1060 | 45 333 184 291 207 Hop . | . . . . . Pick Up 29 | 1 15 . 6 7 Fast Attach 7 | 6 . . . 1 Attach 17 | . 2 4 2 9 Detach 2 | . . . 1 1 Swap 14 | 1 7 . 4 2 Drop 9 | . 2 . 4 3 Fire 64 | . 21 20 3 20 Melee . | . . . . . Ram . | . . . . . Kick . | . . . . . Crush . | . . . . . Escape Stasis . | . . . . . Rewire . | . . . . . Trap . | . . . . . Miscellaneous . | . . . . . Route ------- -11/Scrapyard -10/Materials (discovered 2 exits: *Mat / [*Min]) -9/Materials -9/Mines -8/Materials (discovered 1 exit: Fac) History --------- Turn | Location | Event 40 | -11/Scrapyard | Discovered new exit (range 16) 59 | -11/Scrapyard | Entered Materials 149 | -10/Materials | Discovered new exit (range 9) 219 | -10/Materials | Discovered new exit (range 12) 317 | -10/Materials | Build established: Mutant 404 | -10/Materials | Repaired Grenade Launcher 537 | -10/Materials | Entered another Materials area 537 | -9/Materials | Evolved 2 slots: Utility x2 812 | -9/Materials | Lost 4 parts (1p2u1w) 815 | -9/Materials | Discovered new exit (range 5) 821 | -9/Materials | Identified exit to Mines 827 | -9/Materials | Entered Mines 884 | -9/Mines | Met a Derelict shopkeep closing up shop 997 | -9/Mines | YI-UF0 nonchalantly dropped a Grenade Launcher on the ground 1082 | -9/Mines | Learned 8 Materials zone layouts 1122 | -9/Mines | Assisted by bots powering up and referring to "LRC-V3" 1207 | -9/Mines | Learned location of Storage (-9) 1208 | -9/Mines | Discovered new exit (range 5) 1220 | -9/Mines | Identified exit to Materials 1257 | -9/Mines | Entered Materials 1257 | -8/Materials | Accompanied by 3 allies 1257 | -8/Materials | Evolved 2 slots: Utility x2 1258 | -8/Materials | Identified exit to Factory 1401 | -8/Materials | Lost 3 parts (2n1u) 1816 | -8/Materials | Lost 3 parts (1p1n1u) 2332 | -8/Materials | Core integrity fell below 50% 2364 | -8/Materials | Lost 5 parts (1n2u2w) 2374 | -8/Materials | Core integrity fell below 20% 2393 | -8/Materials | Destroyed by G-47 Trooper with Particle Gun Last Messages --------------- Com. Wheel destroyed. Destroyed Imp. Heat Sink. Critical hit (Burn: +37). Plasma Cannon destroyed. G-47 Trooper heat damages Lgt. Nuclear Core, Aluminum Leg, Aluminum Leg, Particle Gun. G-47 Trooper heat damages Aluminum Leg. G-47 Trooper destroyed. Visual Processing Unit destroyed. U-05 Engineer builds a Wall. Plasma Cannon destroyed. Critical hit (Burn: +37). G-47 Trooper heat spikes uncontrollably. G-47 Trooper overheating. Plasma Cannon destroyed. Critical hit (Burn: +37). G-47 Trooper overheating. Signal Interpreter destroyed. G-47 Trooper heat damages Particle Gun, Aluminum Leg, Aluminum Leg, Lgt. Nuclear Core. Map ----- +----------------------------------------------------+ | ?????##### # #??????????????????????????? | | ########## # #??????????????????????????? | | # # "" #??????????????????????????? | | + + """#??????????????????????????? | | # # S"#???????????????????????????## | | # # #??????????????????????????? # | | ########## ########?????????????????????"""??? # | | # #########???????????????????"""??? # | | """ # ???????????????????"""??? # | | """ + ????????????????????????? # | | """ # ???????????????????"""??? # | | # ###+#####???????????????????"""??? # | | """ #### ## ???????????????????"""??? # | | """ #??# ## ????????????????????????? # | | """ #??# ## ??#######?????#######????## | | #??# ## ??# ####### ####### | | #########??# ## ??# % | | ?????#####?# ## ??# % T % | | ?????# ### ## ??# =% % | | ?????# ## ??# ####### ####### | | ?????# ### ## ??### ########## ##?????# | | #######+##?# ##########????# # # #####??? | | #?# #??????########+# # //#??? | | #?# #??????# # + //#??? | | ### ###????# """# """ # ]]#??? | | # ###### @"""#""""" # ]]#??? | | ###+##+### ### """#""""" # #??? | | ??# ## #""""" # #??? | | ??# ### ## "# """ # #####??? | | ??# #?# ## g ""# # #??????? | | ??# #?####### ## %g"""########## #??????? | | ??# #???????# ### % #????????# #??????? | | ??# ##################+########????# #??##### | | ??# % % # #????# #### | | ??################### " """ #????# | | ????????????????#####+## + """ [#????# | | ????????????????# # # """ #????# | | ????????????????#"" == # # """ #????####+### | | ????????????????#"Y # # !#????# ## | | ????????????????#"" # ########????# ## | | ????????#####???# + ############# ## | | ????????# #???# # ## ]## ## | | ????????# #???## ##### ##] ## ## | | ???????### ############ # """"" ## ## | | ???????# # """"" ########## | | ???????# + """"" #????????#### | | ???????################ # #???????????? | | ??????????????????????######! #???????????? | | ???????????????????????????# #???????????? | | ???????????????????????????###########???????????? | +----------------------------------------------------+ Best States ------------- Heat Dissipation 31 Energy Generation 12 Energy Capacity 265 Matter Stores 300 Matter Capacity 300 Sight Range 18 Terrain Scan Range 14 Terrain Scan Density 85 Jamming Range 12 Evasion (%) 40 Particle Charging 15 Item Schematics ----------------- None Robot Schematics ------------------ None Fabricated ------------ Nothing Alien Tech Used ----------------- None Achievements -------------- It's Just You Part-time Mechanic Challenges ------------ None Game ------ Seed ChainCloakingClaws Manual? 0 Play Time 00:29:20 Cumulative 3.8 hours Start 2024.03.17 @ 20:47:41 End 2024.03.17 @ 21:14:36 Sessions 1 Manual Loads 0 Difficulty Rogue Special Mode None Game No. 7 Rogue 7 Adventurer 0 Explorer 0 Win Type - Total 0 Types 0/0/0/0/0/0/0/0/0 Lore% 3 Gallery% 7 Achievement% 7 Wizard Run 0 Options --------- Layout 1 ASCII 0 Keyboard 0 Movement Mouse Keybinds 0 Fullscreen 1 Font 32/SmallcapsGlow Map View 50x35 Zoom Use 0% Tactical HUD 0 Map Filters NONE Filters NONE Steam 1 RUN: f65af1d0-ed80-42b9-a4b8-eac5a18ae556